bitfinex-derivatives/quotes_ETHF0:USTF0_20250110
["timestamp","ask_amount","ask_price","bid_price","bid_amount"]
[1736483664474,0.3077,3250.3,3250.2,0.4496]
[1736483664676,3.5155,3250.4,3250.2,0.4496]
[1736483664882,3.2078,3250.4,3250.2,0.4496]
[1736483665076,0.3077,3250.3,3250.2,0.4496]
[1736483665477,3.2078,3250.4,3250.2,0.4496]
[1736483665678,3.5155,3250.4,3250.2,0.4496]
[1736483665882,0.3077,3250.3,3250.2,0.4496]
[1736483666277,3.2078,3250.4,3250.2,0.4496]
[1736483666484,3.2078,3250.4,3250.3,0.3077]
[1736483667078,3.2078,3250.4,3250.3,41.1077]
[1736483667980,5.43469523,3251.2,3250.9,0.30764]
[1736483668188,0.30763,3251.1,3251.0,0.4722]
[1736483668682,5.12706523,3251.2,3251.0,0.4722]
[1736483669091,3.2078,3251.2,3251.1,0.30763]
[1736483669879,2.22686523,3251.5,3251.1,0.30763]
[1736483671088,1.91926523,3251.5,3251.1,0.30763]
[1736483671282,0.30761,3251.3,3251.0,0.77984]
[1736483671581,0.30761,3251.4,3251.1,0.30763]
[1736483672683,1.91926523,3251.5,3251.1,0.30763]
[1736483672883,1.91926523,3251.5,3251.4,0.3076]
[1736483673182,1.91926523,3251.5,3251.0,0.4722]
[1736483673381,2.22685523,3251.5,3251.2,0.30761]
[1736483673782,1.91926523,3251.5,3251.0,0.4722]
[1736483674086,0.3076,3251.4,3251.1,0.30762]
[1736483674289,0.30762,3251.3,3251.0,0.77984]
[1736483674985,1.91926523,3251.5,3251.0,0.4722]
[1736483675187,0.3076,3251.4,3251.1,0.30763]
[1736483675581,1.91926523,3251.5,3250.6,3.2078]
[1736483675582,3.2078,3251.2,3250.6,3.2078]
[1736483675787,0.30764,3251.0,3250.7,0.75466]
[1736483676183,0.30763,3251.1,3250.8,0.30765]
[1736483676681,5.12706523,3251.2,3250.7,0.447]
[1736483677080,3.51546,3250.8,3250.7,0.447]
[1736483677286,3.2078,3250.8,3250.5,0.9116]
[1736483677487,0.30768,3250.6,3250.5,0.4684]
[1736483678991,1.91926523,3250.6,3249.9,0.4502]
[1736483679202,0.30771,3250.3,3250.0,0.75123]
[1736483679696,0.30771,3250.3,3250.1,40.8]
[1736483679896,3.2078,3250.4,3250.1,40.8]
[1736483680093,0.30771,3250.2,3250.1,40.8]
[1736483680694,0.30771,3250.2,3250.0,0.4435]
[1736483681193,1.91926523,3250.3,3250.0,0.4435]
[1736483682793,3.5155,3250.4,3250.1,0.30772]
[1736483682989,3.2078,3250.4,3250.0,0.4435]
[1736483683391,3.2078,3250.4,3250.3,0.3077]
[1736483683595,5.13792523,3250.9,3250.5,0.30768]
[1736483683790,4.83026523,3250.9,3250.6,1.3579]
[1736483684000,4.83026523,3250.9,3250.8,0.30766]
[1736483684196,4.83026523,3250.9,3250.7,41.10766]
[1736483684897,4.83026523,3250.9,3250.7,0.30766]
[1736483685301,4.83026523,3250.9,3250.6,1.3579]
[1736483685599,4.83026523,3250.9,3250.6,42.46557]
[1736483686597,5.13791523,3250.9,3250.6,42.46557]
[1736483686795,5.13791523,3250.9,3250.6,42.1579]
[1736483686796,0.30766,3250.8,3250.6,42.1579]
[1736483686995,4.83026523,3250.9,3250.6,41.717]
[1736483686996,0.30767,3250.7,3250.6,41.717]
[1736483687198,3.2078,3250.7,3250.2,0.4696]
[1736483687402,2.37036523,3250.6,3250.2,0.9069]
[1736483687600,0.3077,3250.4,3250.2,0.9069]
[1736483687803,2.37036523,3250.6,3250.2,0.9069]
[1736483688102,0.3077,3250.3,3250.2,0.9069]
[1736483695410,2.37036523,3250.6,3250.2,0.9069]
[1736483695711,0.3077,3250.4,3250.2,0.9069]
[1736483697512,3.2078,3250.7,3250.2,0.9069]
[1736483697718,2.911,3250.9,3250.6,0.30767]
[1736483697916,3.21865,3250.9,3250.7,1.3508]
[1736483698112,5.13791523,3250.9,3250.7,1.3508]
[1736483699218,4.83026523,3250.9,3250.7,1.3508]
[1736483699418,4.83026523,3250.9,3250.7,1.65846]
[1736483699717,4.83026523,3250.9,3250.8,0.30766]
[1736483700418,0.30764,3251.0,3250.8,0.30766]
[1736483700610,3.2078,3251.1,3250.7,1.65846]
[1736483700808,3.2078,3251.1,3250.7,1.3508]
[1736483701211,3.2078,3251.1,3250.8,0.30766]
[1736483701212,3.51543,3251.1,3250.8,0.30766]
[1736483702521,3.51543,3251.1,3250.7,1.3508]
[1736483702722,3.2078,3251.1,3250.8,0.30766]
[1736483703014,3.2078,3251.1,3251.0,0.30764]
[1736483703322,3.2078,3251.1,3250.9,0.30765]
[1736483704221,3.2078,3251.1,3250.7,1.3508]
[1736483704423,2.22692523,3250.8,3250.7,0.9083]
[1736483704626,0.3077,3250.4,3250.2,1.329]
[1736483705220,0.3077,3250.3,3250.2,0.8741]
[1736483705423,5.12706523,3250.5,3249.8,0.4549]
[1736483705424,0.30774,3250.0,3249.8,0.4549]
[1736483705622,3.51553,3250.1,3249.8,1.68685]
[1736483705922,3.2078,3250.1,3250.0,0.30773]
[1736483706222,0.3077,3250.4,3249.8,1.3791]
[1736483706725,0.3077,3250.4,3250.1,0.30772]
[1736483706917,5.12706523,3250.5,3249.9,0.30774]
[1736483707218,0.30771,3250.3,3250.0,0.30773]
[1736483707414,0.30772,3250.2,3250.0,0.30773]
[1736483707618,0.30772,3250.1,3249.9,0.30774]
[1736483707822,0.30772,3250.2,3249.9,0.30774]
[1736483709928,0.30772,3250.2,3249.8,1.3791]
[1736483710121,0.3077,3250.4,3249.8,1.3791]
[1736483710316,0.30772,3250.2,3250.0,0.30772]
[1736483710526,0.30772,3250.2,3249.9,0.30774]
[1736483711024,0.30773,3250.1,3249.8,1.3791]
[1736483711326,2.22698523,3250.2,3249.9,0.30774]
[1736483711721,0.30773,3250.1,3249.9,0.30774]
[1736483712122,2.22698523,3250.2,3250.0,0.30773]
[1736483713223,0.30772,3250.1,3249.9,0.30774]
[1736483713624,2.22698523,3250.2,3250.0,0.30773]
[1736483713818,0.3144,3250.4,3249.8,0.4558]
[1736483714024,0.3077,3250.4,3250.0,0.30773]
[1736483714326,0.30771,3250.3,3250.0,0.30773]
[1736483714527,0.30772,3250.2,3250.0,0.30773]
[1736483714727,0.30772,3250.2,3249.9,0.8915]
[1736483714929,0.30772,3250.2,3249.9,1.19924]
[1736483715832,3.51552,3250.2,3249.9,1.19924]
[1736483716629,3.51552,3250.2,3250.0,0.30773]
[1736483717128,3.2078,3250.2,3249.9,0.8915]
[1736483717427,1.247,3250.7,3250.2,0.30771]
[1736483717428,0.30768,3250.6,3250.2,0.30771]
[1736483717617,0.30769,3250.5,3250.3,0.477]
[1736483718425,0.3077,3250.4,3250.3,0.477]
[1736483719428,1.91926523,3250.5,3250.3,0.477]
[1736483719429,2.22695523,3250.5,3250.3,0.477]
[1736483719630,2.22695523,3250.5,3250.4,0.4486]
[1736483719831,2.22695523,3250.5,3250.4,0.906]
[1736483722726,3.2078,3250.7,3250.4,0.906]
[1736483722921,3.2078,3250.7,3250.6,0.30768]
[1736483724024,1.91926523,3251.4,3251.0,0.30764]
[1736483724025,3.2078,3251.1,3251.0,0.30764]
[1736483724429,3.2078,3251.1,3251.0,41.10764]
[1736483726040,3.2078,3251.6,3251.5,0.30759]
[1736483726432,3.51535,3252.0,3251.7,0.30757]
[1736483726635,3.2078,3252.0,3251.8,0.897]
[1736483726825,3.2078,3252.0,3251.8,1.20456]
[1736483727335,3.51535,3252.0,3251.8,0.897]
[1736483727535,3.2078,3252.0,3251.8,0.897]
[1736483728036,3.51535,3252.0,3251.8,0.897]
[1736483728334,0.30755,3251.9,3251.8,0.897]
[1736483728631,3.51535,3252.0,3251.8,0.897]
[1736483728826,3.2078,3252.0,3251.8,0.897]
[1736483729027,3.2078,3252.0,3251.8,1.20456]
[1736483730030,3.2078,3252.0,3251.9,0.30755]
[1736483730233,0.30751,3252.4,3251.8,0.897]
[1736483730432,0.30751,3252.4,3252.0,0.30754]
[1736483731144,0.30752,3252.3,3251.8,0.897]
[1736483731325,0.30752,3252.3,3252.0,0.30754]
[1736483732038,0.30751,3252.4,3252.0,0.30754]
[1736483732230,0.30751,3252.4,3251.8,0.897]
[1736483732430,0.30751,3252.4,3252.1,0.30753]
[1736483733030,5.12706523,3252.6,3251.8,0.897]
[1736483733231,0.3075,3252.5,3251.8,0.897]
[1736483733431,0.3075,3252.5,3252.1,0.30753]
[1736483733634,0.3075,3252.5,3251.8,0.897]
[1736483733840,5.12706523,3252.6,3252.1,0.30753]
[1736483734336,5.12706523,3252.6,3251.8,0.897]
[1736483734632,5.12706523,3252.6,3252.5,0.3075]
[1736483734633,3.2078,3252.6,3252.5,0.3075]
[1736483735232,3.2078,3252.6,3252.5,41.1075]
[1736483735434,3.2078,3252.6,3252.5,0.3075]
[1736483735834,3.2078,3252.6,3252.5,41.1075]
[1736483736840,3.51525,3253.0,3252.6,0.30748]
[1736483737042,3.51525,3253.0,3252.6,0.75068]
[1736483737429,3.51525,3253.0,3252.6,1.20668]
[1736483740340,3.51525,3253.0,3252.6,0.8992]
[1736483740538,3.51525,3253.0,3252.7,0.30747]
[1736483742037,3.51525,3253.0,3252.7,0.75657]
[1736483742438,3.2078,3253.0,3252.7,0.4491]
[1736483742633,3.2078,3253.0,3252.8,0.30746]
[1736483742839,3.2078,3253.0,3252.7,0.4491]
[1736483743040,0.30747,3252.9,3252.7,0.4491]
[1736483744145,3.2078,3253.0,3252.7,0.4491]
[1736483744342,0.30747,3252.9,3252.7,0.4491]
[1736483745941,0.30747,3252.8,3252.7,0.4491]
[1736483746142,0.30746,3252.9,3252.7,0.4491]
[1736483748649,0.30747,3252.8,3252.7,0.4491]
[1736483748851,3.2078,3253.0,3252.7,0.4491]
[1736483749041,1.91926523,3252.9,3252.4,2.918]
[1736483749242,0.30751,3252.4,3251.9,4.91315]
[1736483749442,0.30751,3252.4,3252.1,0.30753]
[1736483749743,3.5153,3252.5,3252.2,0.30752]
[1736483750248,0.30751,3252.4,3252.1,0.30753]
[1736483750440,3.2078,3252.5,3251.9,45.4056]
[1736483750956,0.30748,3252.7,3252.4,0.30751]
[1736483751144,0.30748,3252.7,3252.5,1.341]
[1736483751643,0.30747,3252.8,3252.5,1.64849]
[1736483752046,3.2078,3252.9,3252.5,1.341]
[1736483752441,3.6511,3253.3,3252.5,1.341]
[1736483752642,3.2078,3253.3,3252.9,1.91926523]
[1736483752843,3.2078,3253.7,3252.9,1.91926523]
[1736483753051,3.2078,3253.7,3253.6,0.30739]
[1736483754144,3.2078,3253.7,3253.3,1.3483]
[1736483754546,3.2078,3253.7,3253.5,0.3074]
[1736483755247,3.2078,3253.7,3253.6,40.8]
[1736483757157,3.2078,3253.7,3253.6,41.10739]
[1736483757458,3.2078,3253.7,3253.5,0.3074]
[1736483758151,3.2078,3253.7,3253.4,41.10741]
[1736483758549,3.2078,3253.7,3253.3,1.3483]
[1736483758550,0.3074,3253.6,3253.3,1.3483]
[1736483758757,0.30741,3253.5,3253.3,1.3483]
[1736483758947,0.3074,3253.6,3253.3,1.3483]
[1736483759348,3.2078,3253.7,3253.6,0.30739]
[1736483762057,3.2078,3254.1,3254.0,0.30736]
[1736483762859,3.2078,3254.1,3254.0,41.10736]
[1736483764362,3.2078,3254.7,3254.0,40.8]
[1736483764560,3.51509,3254.7,3254.3,0.30732]
[1736483766060,0.3073,3254.6,3254.3,0.30732]
[1736483767760,0.3073,3254.6,3254.3,0.30733]
[1736483768062,3.5151,3254.7,3254.1,0.9177]
[1736483768262,3.2078,3254.7,3254.1,0.9177]
[1736483768460,0.3073,3254.6,3254.4,0.30731]
[1736483768660,3.51509,3254.7,3254.4,0.30731]
[1736483769264,3.51509,3254.7,3254.2,0.30734]
[1736483769463,3.51509,3254.7,3254.4,0.30731]
[1736483771069,0.3073,3254.6,3254.4,0.30731]
[1736483771264,3.2078,3254.7,3254.4,0.30731]
[1736483772370,3.5151,3254.7,3254.1,0.9177]
[1736483772571,3.5151,3254.7,3254.5,0.30731]
[1736483772971,3.5151,3254.7,3254.4,0.30731]
[1736483773775,3.5151,3254.7,3254.1,0.9177]
[1736483774178,3.5151,3254.7,3254.4,0.30731]
[1736483774470,3.2078,3254.7,3254.6,0.3073]
[1736483775175,3.2078,3255.1,3254.4,1.91926523]
[1736483775370,3.2078,3255.1,3255.0,0.30725]
[1736483776776,3.2078,3255.1,3255.0,2.22651523]
[1736483777273,3.2078,3255.1,3255.0,43.02651523]
[1736483779171,3.2078,3255.7,3255.0,42.71926523]
[1736483779365,3.2078,3255.7,3255.3,0.30722]
[1736483779366,3.515,3255.7,3255.3,0.30722]
[1736483779578,0.3072,3255.6,3255.3,0.30722]
[1736483779876,3.2078,3255.7,3255.1,0.9115]
[1736483779877,0.30724,3255.3,3255.1,0.9115]
[1736483780276,0.30721,3255.6,3255.2,0.30724]
[1736483780574,1.08191,3255.6,3255.2,0.30724]
[1736483780774,1.08191,3255.6,3255.1,0.9115]
[1736483780775,0.7747,3255.6,3255.1,0.9115]
[1736483781077,0.30721,3255.5,3255.1,1.21875]
[1736483781479,0.30722,3255.5,3255.1,1.21875]
[1736483781779,0.30723,3255.4,3255.1,0.9115]
[1736483781979,0.7747,3255.6,3254.8,41.2723]
[1736483781980,0.7747,3255.6,3254.9,0.30727]
[1736483782174,0.7747,3255.6,3254.8,41.2723]
[1736483782175,0.30724,3255.3,3255.0,0.30726]
[1736483782776,0.7747,3255.6,3254.9,0.30727]
[1736483782977,0.7747,3255.6,3254.8,41.57957]
[1736483782978,0.30725,3255.2,3254.8,41.57957]
[1736483783180,0.30725,3255.2,3254.9,0.30727]
[1736483783379,3.2078,3255.3,3254.8,40.8]
[1736483783571,3.2078,3254.9,3254.5,1.2105]
[1736483783777,0.3073,3254.6,3254.3,0.30732]
[1736483783972,0.3073,3254.6,3254.2,0.9042]
[1736483784277,0.4518,3254.8,3254.3,40.8]
[1736483784487,0.3073,3254.6,3254.3,40.8]
[1736483785080,0.3073,3254.6,3254.3,41.10733]
[1736483785483,0.4518,3254.8,3254.3,40.8]
[1736483785683,0.3073,3254.6,3254.3,40.8]
[1736483785872,0.3073,3254.6,3254.3,41.10732]
[1736483787382,0.30729,3254.7,3254.4,0.30731]
[1736483787979,0.00117337,3254.5,3254.4,0.30731]
[1736483789081,0.00117337,3254.5,3254.3,41.10732]
[1736483790288,0.00117337,3254.5,3254.4,0.30732]
[1736483790581,0.00117337,3254.5,3254.3,41.10732]
[1736483790788,0.30848337,3254.5,3254.3,40.8]
[1736483790979,0.00117337,3254.5,3254.3,40.8]
[1736483791988,0.00117337,3254.5,3254.3,41.10732]
[1736483792494,0.00117337,3254.5,3254.3,40.8]
[1736483792790,0.30848337,3254.5,3254.3,40.8]
[1736483792991,0.00117337,3254.5,3254.3,40.8]
[1736483793188,0.30732,3254.4,3254.3,40.8]
[1736483793398,3.82952,3254.4,3254.3,40.8]
[1736483793893,3.82952,3254.4,3254.0,0.75905]
[1736483794392,3.82952,3254.4,3254.1,40.8]
[1736483794787,3.5222,3254.4,3254.1,40.8]
[1736483795093,0.30733,3254.3,3254.1,40.8]
[1736483795894,3.5222,3254.4,3254.1,40.8]
[1736483796086,3.82952,3254.4,3254.1,41.10734]
[1736483796288,3.51512,3254.4,3254.1,41.10734]
[1736483799192,3.2078,3254.4,3254.1,41.10734]
[1736483799492,3.51512,3254.4,3254.1,41.10734]
[1736483800795,0.30733,3254.3,3254.1,41.10734]
[1736483801209,3.51512,3254.4,3254.1,41.10734]
[1736483802097,3.2078,3254.4,3254.1,41.10734]
[1736483802398,3.51512,3254.4,3254.1,41.10734]
[1736483802598,3.51512,3254.4,3254.1,40.8]
[1736483802898,3.51512,3254.4,3254.1,41.10734]
[1736483803396,0.30733,3254.3,3254.1,40.8]
[1736483803598,0.30733,3254.3,3254.1,41.10735]
[1736483805294,0.30733,3254.3,3254.1,40.8]
[1736483805997,3.2078,3254.4,3254.0,0.4517]
[1736483806197,0.30736,3254.0,3253.9,0.8992]
[1736483808699,1.91926523,3254.2,3253.9,0.8992]
[1736483809000,0.30735,3254.1,3253.9,0.8992]
[1736483810301,1.91926523,3254.2,3253.9,0.8992]
[1736483810601,0.30736,3254.0,3253.9,0.8992]
[1736483812398,0.30736,3254.0,3253.7,0.4779]
[1736483812399,3.2078,3254.0,3253.7,0.4779]
[1736483812602,3.2078,3254.0,3253.3,40.8]
[1736483812603,1.91926523,3253.8,3253.4,0.8915]
[1736483812904,3.2078,3254.0,3253.4,0.8915]
[1736483812905,2.22666523,3253.5,3253.4,0.8915]
[1736483813197,2.22666523,3253.5,3253.4,0.4427]
[1736483815203,3.2078,3253.6,3253.4,0.4427]
[1736483815402,0.30737,3253.9,3253.4,0.4427]
[1736483815600,0.30737,3253.9,3253.6,0.30738]
[1736483815802,0.30737,3253.8,3253.7,0.446]
[1736483815999,0.30737,3253.8,3253.7,0.9044]
[1736483816201,3.51517,3253.8,3253.7,0.9044]
[1736483816505,3.2078,3253.8,3253.7,0.9044]
[1736483816698,3.51517,3253.8,3253.7,0.9044]
[1736483817101,3.2078,3253.8,3253.7,0.9044]
[1736483817701,3.2078,3254.2,3253.7,0.9044]
[1736483817903,0.30737,3253.9,3253.7,0.9044]
[1736483818403,0.30737,3253.8,3253.7,0.9044]
[1736483821305,3.51517,3253.8,3253.7,0.9044]
[1736483822814,0.3074,3253.5,3253.4,0.4427]
[1736483823314,5.12706523,3253.8,3253.4,0.4427]
[1736483823315,0.30738,3253.7,3253.4,0.75011]
[1736483823518,0.30739,3253.6,3253.4,0.75011]
[1736483824316,0.3074,3253.5,3253.4,0.4427]
[1736483824709,0.30742,3253.3,3253.2,0.9298]
[1736483824908,3.51522,3253.3,3253.2,0.9298]
[1736483825220,3.2078,3253.3,3253.2,0.9298]
[1736483825409,3.2078,3253.3,3253.2,1.23723]
[1736483825617,1.246,3253.6,3253.2,0.9298]
[1736483825807,0.30741,3253.4,3253.3,0.4713]
[1736483826109,5.43447523,3253.4,3253.3,0.4713]
[1736483826412,3.2078,3253.4,3253.3,0.4713]
[1736483826715,3.2078,3253.4,3253.3,0.77872]
[1736483828213,3.2078,3253.4,3253.3,0.4713]
[1736483829822,3.51521,3253.4,3253.3,0.4713]
[1736483832816,3.2078,3253.4,3253.3,0.4713]
[1736483833021,3.2078,3253.4,3253.3,0.77872]
[1736483833224,1.246,3253.6,3253.5,0.3074]
[1736483833722,0.30738,3253.7,3253.5,0.3074]
[1736483834121,5.12706523,3253.8,3253.3,0.4713]
[1736483834322,0.3074,3253.6,3253.3,0.77872]
[1736483834525,3.2078,3253.8,3253.3,0.4713]
[1736483834723,3.2078,3253.8,3253.7,0.30738]
[1736483835523,0.62243,3254.3,3254.0,0.30735]
[1736483835826,0.30733,3254.3,3254.1,0.4345]
[1736483836026,0.30733,3254.3,3254.1,0.9078]
[1736483836227,0.30734,3254.2,3254.1,0.9078]
[1736483836828,0.30733,3254.3,3254.1,0.9078]
[1736483837228,0.30733,3254.3,3254.1,1.21515]
[1736483837432,3.51512,3254.4,3254.1,1.21514]
[1736483837634,3.2078,3254.4,3254.2,0.4437]
[1736483837833,0.30733,3254.3,3254.2,0.4437]
[1736483838033,3.51512,3254.4,3254.2,0.4437]
[1736483838535,3.2078,3254.4,3254.3,0.30733]
[1736483838734,3.2078,3254.4,3254.2,0.4437]
[1736483839338,3.2078,3254.4,3254.3,0.30733]
[1736483839537,3.2078,3254.4,3254.2,0.75103]
[1736483839943,0.30732,3254.4,3254.2,0.4437]
[1736483840644,3.2078,3254.4,3254.2,0.4437]
[1736483840844,0.30733,3254.3,3254.2,0.4437]
[1736483842755,3.2078,3254.4,3254.1,0.9078]
[1736483843042,1.91926523,3254.2,3252.9,3.16826523]
[1736483843241,3.2078,3253.9,3253.5,0.3074]
[1736483843438,0.30737,3253.8,3253.6,0.8733]
[1736483844441,0.30738,3253.7,3253.6,0.8733]
[1736483844646,3.2078,3253.9,3253.3,0.4481]
[1736483844647,5.12706523,3253.9,3253.3,0.4481]
[1736483844849,0.30741,3253.4,3253.3,0.4481]
[1736483850447,0.30741,3253.5,3253.3,0.4481]
[1736483850649,0.30741,3253.4,3253.3,0.4481]
[1736483855143,2.38116523,3253.6,3253.1,0.9106]
[1736483855348,0.30743,3253.2,3253.1,0.9106]
[1736483855751,3.51523,3253.2,3253.1,0.9106]
[1736483855956,0.30744,3253.1,3253.0,41.272]
[1736483856249,0.30747,3252.8,3252.5,0.4421]
[1736483856452,2.22672523,3252.9,3252.6,0.9357]
[1736483856651,2.22672523,3252.9,3252.6,41.7357]
[1736483856947,0.30751,3252.4,3252.1,0.30753]
[1736483857146,1.91926523,3252.6,3252.3,0.4364]
[1736483857352,0.30748,3252.7,3252.4,40.8]
[1736483857552,3.2078,3252.8,3252.4,40.8]
[1736483857851,0.3075,3252.5,3252.4,40.8]
[1736483858853,1.91926523,3252.6,3252.3,0.4364]
[1736483859054,0.30751,3252.4,3252.3,0.4364]
[1736483863151,0.30752,3252.3,3252.2,0.8978]
[1736483867056,3.51531,3252.4,3252.2,0.8978]
[1736483867256,3.51531,3252.4,3252.3,0.4561]
[1736483867755,0.30751,3252.4,3252.3,0.4561]
[1736483869053,3.2078,3252.4,3251.6,3.2078]
[1736483869356,1.91926523,3252.2,3251.7,1.3606]
[1736483869651,3.2078,3252.4,3251.8,40.8]
[1736483869851,3.51531,3252.4,3252.1,0.30753]
[1736483870354,3.51531,3252.4,3252.2,0.4539]
[1736483870657,3.51531,3252.4,3252.3,0.9137]
[1736483873558,3.51531,3252.4,3252.3,0.4506]
[1736483873864,0.30754,3252.0,3251.9,0.4322]
[1736483874059,0.30754,3252.0,3251.9,1.3684]
[1736483875065,0.30754,3252.1,3251.9,1.3684]
[1736483875268,0.30754,3252.0,3251.9,1.3684]
[1736483875562,0.30754,3252.1,3251.9,1.3684]
[1736483876762,0.30753,3252.2,3252.0,0.30754]
[1736483876970,0.30753,3252.2,3251.9,1.67595]
[1736483877264,3.2078,3252.4,3251.9,1.3684]
[1736483877465,0.30754,3252.1,3251.9,1.3684]
[1736483877969,0.30753,3252.2,3251.9,1.67595]
[1736483878267,3.2078,3252.4,3251.9,1.67595]
[1736483878573,0.30754,3252.1,3251.9,1.67595]
[1736483879967,0.30753,3252.2,3251.9,1.67595]
[1736483881263,0.30754,3252.1,3251.9,1.3684]
[1736483881468,3.2078,3252.4,3251.9,1.3684]
[1736483881668,0.4595,3252.3,3251.9,1.67595]
[1736483881871,0.30754,3252.1,3251.9,1.67595]
[1736483882769,0.30754,3252.1,3251.9,1.3684]
[1736483884763,0.4595,3252.3,3251.9,1.3684]
[1736483884956,0.30754,3252.0,3251.9,0.9107]
[1736483885159,3.2078,3252.0,3251.5,0.4529]
[1736483885359,0.30758,3251.6,3251.5,0.4529]
[1736483885764,0.74178,3251.6,3251.5,0.4529]
[1736483886566,0.3076,3251.4,3251.3,0.8914]
[1736483887065,1.91926523,3251.4,3251.1,0.4435]
[1736483887269,0.30762,3251.2,3251.1,0.4435]
[1736483887663,0.30762,3251.3,3251.1,0.4435]
[1736483887858,0.30761,3251.3,3251.1,0.4435]
[1736483888065,0.30762,3251.2,3251.1,0.4435]
[1736483889969,1.91926523,3251.4,3251.1,0.4435]
[1736483890265,0.30761,3251.4,3251.1,0.75113]
[1736483890764,0.30761,3251.3,3251.1,0.4435]
[1736483891064,0.30761,3251.3,3251.1,0.75113]
[1736483891265,0.30759,3251.5,3251.1,0.75113]
[1736483891460,0.4728,3252.0,3251.6,0.30758]
[1736483891461,0.30756,3251.9,3251.6,0.30758]
[1736483891665,5.12706523,3252.0,3251.7,0.9097]
[1736483891866,0.30756,3251.8,3251.7,0.9097]
[1736483892568,0.76156,3251.9,3251.7,0.9097]
[1736483892870,0.30756,3251.8,3251.7,0.9097]
[1736483896275,0.30759,3251.6,3251.1,3.2078]
[1736483896473,1.91926523,3251.7,3251.2,1.3678]
[1736483896676,1.91926523,3251.7,3251.5,0.30759]
[1736483896972,2.22684523,3251.7,3251.3,0.30761]
[1736483897176,1.91926523,3251.7,3251.2,1.3678]
[1736483897368,1.91926523,3251.7,3251.5,0.30759]
[1736483898274,0.30757,3251.8,3251.5,0.30759]
[1736483898770,3.2078,3251.9,3251.2,1.3678]
[1736483899074,3.2078,3251.9,3251.8,0.30756]
[1736483902274,0.30753,3252.2,3251.9,0.30755]
[1736483902573,0.30753,3252.2,3252.0,1.3996]
[1736483902766,3.2078,3252.1,3252.0,1.3996]
[1736483902976,3.51533,3252.1,3252.0,1.3996]
[1736483903276,3.2078,3252.1,3252.0,1.3996]
[1736483904074,3.2078,3252.1,3252.0,1.70714]
[1736483904270,3.2078,3252.5,3252.0,1.3996]
[1736483904482,3.2078,3252.5,3252.4,0.30751]
[1736483904670,1.91926523,3253.2,3252.9,0.30746]
[1736483904671,5.43450523,3253.2,3252.9,0.30746]
[1736483904872,5.43450523,3253.2,3253.1,0.30744]
[1736483904873,3.2078,3253.2,3253.1,0.30744]
[1736483905478,5.43444523,3253.8,3253.4,0.3074]
[1736483905678,5.12706523,3253.8,3253.1,0.4332]
[1736483905978,5.43444523,3253.8,3253.1,0.4332]
[1736483906179,0.30739,3253.7,3253.3,0.30742]
[1736483906476,0.30739,3253.6,3253.2,0.30743]
[1736483906677,1.91926523,3253.5,3253.2,0.30743]
[1736483906978,2.22667523,3253.5,3253.1,0.74064]
[1736483907175,1.91926523,3253.5,3253.0,41.7166]
[1736483907384,0.4369,3253.4,3253.0,0.9166]
[1736483907576,0.4369,3253.4,3253.1,0.30744]
[1736483907776,0.4369,3253.4,3253.0,0.9166]
[1736483907977,0.74432,3253.4,3253.0,1.22405]
[1736483908177,0.4369,3253.4,3253.0,1.22405]
[1736483908879,0.4369,3253.4,3253.1,0.30743]
[1736483909273,0.4369,3253.4,3253.1,0.30744]
[1736483912083,0.4369,3253.4,3253.0,0.9166]
[1736483912282,0.30744,3253.1,3253.0,0.4443]
[1736483912782,0.30742,3253.3,3253.0,0.4443]
[1736483913381,0.30742,3253.3,3253.0,0.75175]
[1736483913572,0.74432,3253.4,3253.0,0.4443]
[1736483913782,0.4369,3253.4,3253.1,0.30743]
[1736483914179,0.74431,3253.4,3253.0,0.75175]
[1736483915387,0.74431,3253.4,3253.0,0.4443]
[1736483915583,0.74431,3253.4,3253.1,0.30744]
[1736483915584,0.4369,3253.4,3253.1,0.30744]
[1736483915784,0.74431,3253.4,3253.1,0.30744]
[1736483916186,0.30741,3253.4,3253.1,0.30744]
[1736483918296,0.30743,3253.3,3253.0,0.75175]
[1736483918597,0.30743,3253.2,3253.0,0.4443]
[1736483918787,0.4537,3253.2,3253.0,0.75175]
[1736483918988,0.76113,3253.2,3253.0,0.75175]
[1736483919187,0.4537,3253.2,3253.0,0.75175]
[1736483919389,0.4537,3253.2,3253.1,0.30744]
[1736483919895,0.4537,3253.2,3253.0,0.4443]
[1736483920096,0.4537,3253.2,3253.0,0.75174]
[1736483923291,0.4537,3253.2,3253.0,0.4443]
[1736483923487,0.76113,3253.2,3253.0,0.4443]
[1736483923689,0.4537,3253.2,3253.0,0.4443]
[1736483923994,0.4537,3253.2,3253.1,0.30744]
[1736483924293,0.4537,3253.2,3253.1,0.76024]
[1736483925485,3.2078,3253.5,3253.1,0.4528]
[1736483925690,3.2078,3253.5,3253.4,0.30741]
[1736483927789,0.76567,3253.8,3253.1,0.4528]
[1736483927996,0.76567,3253.8,3253.5,0.3074]
[1736483928298,0.76567,3253.8,3253.6,0.9282]
[1736483930099,0.30738,3253.7,3253.6,0.9282]
[1736483930302,2.37756523,3253.8,3253.3,0.30742]
[1736483930506,0.3074,3253.6,3253.3,0.30742]
[1736483930807,0.30744,3253.1,3252.9,0.4404]
[1736483931097,5.12706523,3253.5,3252.9,0.74786]
[1736483931098,5.57856523,3253.5,3252.9,0.74786]
[1736483931290,0.30744,3253.1,3252.8,0.74876]
[1736483931491,0.4698,3253.0,3252.8,0.74876]